bitfinex/quotes_ETHUSD_20240719
["timestamp","ask_amount","ask_price","bid_price","bid_amount"]
[1721377264640,2.94437,3396.4,3395.4,0.55]
[1721377264844,2.9449,3395.8,3395.3,0.55]
[1721377265052,2.94469,3396.0,3395.3,3.49519]
[1721377265575,2.94469,3396.0,3395.4,2.94515]
[1721377265707,2.94469,3396.0,3395.5,0.55]
[1721377265904,2.94469,3396.0,3395.6,0.404515]
[1721377266142,2.94469,3396.0,3395.7,0.55]
[1721377266351,0.1469047,3396.7,3395.7,0.55]
[1721377266352,2.94428,3396.5,3395.7,2.973]
[1721377266508,2.94434,3396.4,3395.7,2.973]
[1721377266939,2.94434,3396.4,3395.7,5.91789]
[1721377267140,2.94434,3396.4,3395.8,0.6322405]
[1721377267413,2.94439,3396.3,3395.9,0.55]
[1721377267646,2.94428,3396.5,3395.9,0.55]
[1721377267808,3.0909947,3396.7,3395.9,0.55]
[1721377268012,2.94419,3396.6,3396.0,2.94462]
[1721377268209,0.1469047,3396.7,3396.1,0.96268605]
[1721377268516,0.1469047,3396.7,3396.1,3.35722605]
[1721377268729,2.94427,3396.5,3396.2,0.55]
[1721377269063,2.94435,3396.4,3396.2,0.55]
[1721377269208,2.94417,3396.6,3395.9,0.55]
[1721377269408,3.0909647,3396.7,3396.0,4.19413205]
[1721377269607,0.1469047,3396.7,3396.1,0.55]
[1721377269956,2.94446,3396.2,3396.1,0.55]
[1721377270160,2.94491,3395.7,3395.2,2.3868]
[1721377270305,2.94443,3396.3,3395.3,2.94518]
[1721377270513,2.9447,3396.0,3395.4,0.533198]
[1721377271131,2.94446,3396.2,3395.4,0.533198]
[1721377271334,2.94446,3396.2,3395.5,2.94507]
[1721377271538,2.94431,3396.4,3395.5,2.94507]
[1721377271539,2.94455,3396.1,3395.5,2.94507]
[1721377272062,2.94431,3396.4,3395.4,0.533198]
[1721377272063,2.94444,3396.3,3395.6,3.49498]
[1721377272262,2.94446,3396.2,3395.7,0.4028178]
[1721377272488,0.1469047,3396.7,3395.8,0.55]
[1721377272625,2.94504,3395.6,3395.3,3.0]
[1721377273117,2.94504,3395.6,3395.2,2.3868]
[1721377273318,2.553,3395.6,3394.5,7.4]
[1721377273522,2.553,3395.6,3394.6,2.4832]
[1721377273767,2.553,3395.6,3394.6,2.73152]
[1721377273948,2.94555,3395.0,3394.6,2.73152]
[1721377274262,2.94482,3395.8,3395.0,2.4832]
[1721377274567,2.94482,3395.8,3395.1,2.94539]
[1721377274868,2.94542,3395.1,3395.0,2.4832]
[1721377275071,5.49764,3396.0,3394.6,0.24832]
[1721377275072,2.94527,3395.3,3394.7,3.0]
[1721377275268,2.94527,3395.3,3394.6,0.24832]
[1721377275269,2.94527,3395.3,3394.8,0.573152]
[1721377275935,2.94509,3395.5,3394.8,0.573152]
[1721377276138,2.94509,3395.5,3394.9,0.55]
[1721377276741,2.94509,3395.5,3395.0,2.54210189]
[1721377276969,2.94481,3395.8,3395.2,2.94529]
[1721377277172,2.94481,3395.8,3395.3,0.55]
[1721377277468,2.94481,3395.8,3395.3,1.147859]
[1721377277668,2.9449,3395.7,3395.3,1.147859]
[1721377277830,2.9449,3395.7,3395.3,0.55]
[1721377278030,2.9449,3395.7,3395.2,0.55]
[1721377278457,5.88951,3395.9,3395.2,0.55]
[1721377278626,2.94473,3395.9,3395.2,0.55]
[1721377278827,2.94482,3395.8,3395.2,0.55]
[1721377279028,5.49734,3396.4,3395.2,0.55]
[1721377279029,2.94469,3396.0,3395.3,0.65675397]
[1721377279340,2.94469,3396.0,3395.5,2.3358]
[1721377279545,3.0910047,3396.7,3395.6,2.9449]
[1721377279546,2.94419,3396.6,3395.6,2.9449]
[1721377279736,0.1469047,3396.7,3395.7,2.94484]
[1721377279737,2.94435,3396.4,3395.7,2.94484]
[1721377279943,2.94435,3396.4,3395.8,1.610364]
[1721377280145,0.1469047,3396.7,3395.8,1.610364]
[1721377280146,2.94414,3396.6,3395.8,1.610364]
[1721377280941,0.1469047,3396.7,3395.8,1.610364]
[1721377280942,2.94447,3396.2,3395.8,1.610364]
[1721377281889,2.553,3396.4,3395.8,0.55]
[1721377282031,2.9455,3395.0,3394.6,1.5333613]
[1721377282232,5.49863,3394.9,3394.4,2.2666]
[1721377282448,2.553,3394.9,3394.4,2.2666]
[1721377282768,2.94472,3395.9,3393.1,2.45695448]
[1721377282769,2.94624,3394.2,3393.7,2.2666]
[1721377282973,2.94624,3394.2,3393.8,0.521338]
[1721377283643,2.94538,3395.2,3393.8,0.521338]
[1721377283644,2.94586,3394.6,3393.8,0.521338]
[1721377283883,2.94586,3394.6,3393.8,3.467858]
[1721377284182,2.94534,3395.2,3394.1,1.773]
[1721377284472,3.406,3395.9,3394.1,1.773]
[1721377284473,2.94567,3394.9,3394.1,7.71924]
[1721377284654,2.94567,3394.9,3394.2,1.927469]
[1721377284977,2.94574,3394.8,3394.2,1.927469]
[1721377285765,3.406,3396.4,3394.3,4.0376]
[1721377285967,0.1469047,3396.7,3394.3,4.0376]
[1721377285968,2.94602,3394.4,3394.3,2.2646]
[1721377286170,2.94618,3394.3,3394.1,3.0]
[1721377286344,2.94618,3394.3,3393.8,2.2646]
[1721377286966,2.94622,3394.2,3393.8,2.2646]
[1721377287154,2.9463,3394.1,3393.8,2.2646]
[1721377287559,2.94615,3394.3,3393.8,2.2646]
[1721377288119,2.94621,3394.2,3393.8,2.2646]
[1721377288257,2.94618,3394.3,3393.8,2.2646]
[1721377289103,2.94618,3394.3,3393.9,0.55]
[1721377290196,3.406,3395.2,3393.9,0.55]
[1721377290197,2.94603,3394.4,3393.9,0.55]
[1721377290355,2.94533,3395.3,3393.6,3.0]
[1721377290356,2.94646,3393.9,3393.6,3.0]
[1721377290562,3.406,3394.8,3393.2,5.3383]
[1721377290563,2.94577,3394.7,3393.2,5.3383]
[1721377290799,2.94687,3393.5,3393.2,2.3383]
[1721377291098,2.94588,3394.6,3392.5,2.94759]
[1721377291099,2.94655,3393.8,3392.7,2.3383]
[1721377291301,2.94655,3393.8,3392.7,3.606889]
[1721377291548,2.94704,3393.3,3392.7,3.606889]
[1721377292022,2.94683,3393.5,3392.7,3.606889]
[1721377292023,2.94708,3393.2,3392.7,3.606889]
[1721377292223,2.94716,3393.1,3392.7,3.606889]
[1721377293118,3.406,3394.0,3392.7,1.268589]
[1721377293119,2.94673,3393.6,3392.7,1.268589]
[1721377293320,2.94673,3393.6,3392.5,3.0]
[1721377293527,2.94673,3393.6,3392.6,0.55]
[1721377293528,2.94732,3393.0,3392.6,0.55]
[1721377293896,2.94732,3393.0,3392.4,0.55]
[1721377294504,2.94733,3392.9,3392.4,0.55]
[1721377294709,2.94722,3393.1,3392.4,3.49775]
[1721377294934,2.94722,3393.1,3392.5,4.191658]
[1721377295144,2.9466,3393.8,3392.6,0.55]
[1721377295298,2.94728,3393.0,3392.6,0.55]
[1721377295498,2.94682,3393.5,3392.4,0.55]
[1721377295834,2.94759,3392.6,3392.3,3.0]
[1721377296049,2.94759,3392.6,3392.2,2.4709]
[1721377296215,2.94759,3392.6,3392.3,0.24709]
[1721377296539,2.94743,3392.8,3392.3,3.24709]
[1721377297102,2.94716,3393.1,3392.4,3.49771]
[1721377297341,3.406,3394.0,3392.4,0.55]
[1721377297342,2.94726,3393.0,3392.4,0.55]
[1721377297638,2.94733,3392.9,3392.4,0.55]
[1721377297847,3.1487013,3394.5,3391.3,2.3382]
[1721377297848,2.94811,3392.1,3391.3,2.3382]
[1721377298134,2.94793,3392.2,3391.8,0.74]
[1721377298359,2.94793,3392.2,3391.4,2.9486]
[1721377298497,2.94793,3392.2,3391.5,2.94854]
[1721377298694,2.94793,3392.2,3391.6,2.94845]
[1721377298898,2.94777,3392.4,3391.6,2.94845]
[1721377298899,2.94778,3392.4,3391.6,2.94845]
[1721377299226,3.406,3393.2,3391.6,2.94845]
[1721377299227,2.94785,3392.3,3391.7,0.589706]
[1721377299452,2.94785,3392.3,3391.7,3.589706]
[1721377299596,2.94785,3392.3,3391.8,0.55]
[1721377299801,2.94727,3393.0,3391.8,3.49828]
[1721377299802,2.94778,3392.4,3391.8,3.49828]
[1721377300107,2.94778,3392.4,3391.8,0.55]
[1721377300455,2.94778,3392.4,3391.9,0.4088156]
[1721377300603,2.94778,3392.4,3392.0,0.55]
[1721377301241,2.9476,3392.6,3392.0,0.55]
[1721377301442,2.9476,3392.6,3392.0,3.49808]
[1721377301961,2.9476,3392.6,3392.0,0.55]
[1721377302251,2.94768,3392.5,3392.0,0.94070356]
[1721377303626,2.94768,3392.5,3392.0,0.55]
[1721377303913,2.94787,3392.3,3392.0,0.55]
[1721377304117,2.94787,3392.3,3391.8,0.55]
[1721377304342,2.94768,3392.5,3391.8,3.49826]
[1721377304536,2.94768,3392.5,3391.8,0.55]
[1721377304738,2.94753,3392.7,3391.9,3.298022]
[1721377305054,2.94753,3392.7,3392.0,0.55]
[1721377305353,2.94716,3393.1,3392.4,2.94774]
[1721377305559,2.94699,3393.3,3392.5,0.55]
[1721377306015,2.94699,3393.3,3392.6,2.94752]
[1721377306309,2.94707,3393.2,3392.7,0.55]
[1721377306460,2.3081,3394.0,3392.7,0.55]
[1721377306461,2.94659,3393.8,3392.7,0.55]
[1721377306662,2.94731,3393.0,3392.7,0.55]
[1721377306902,2.94733,3392.9,3392.7,0.55]
[1721377307258,2.94676,3393.6,3392.7,0.55]
[1721377307486,2.94708,3393.2,3392.7,0.55]
[1721377307711,2.94676,3393.6,3392.4,0.55]
[1721377307917,2.94753,3392.7,3392.3,0.55]
[1721377308381,2.94734,3392.9,3392.3,1.440391]
[1721377308697,2.9475,3392.7,3392.3,1.440391]
[1721377308862,2.94734,3392.9,3392.3,1.440391]
[1721377309061,3.406,3393.7,3392.3,1.440391]
[1721377309300,3.406,3393.7,3392.7,2.94748]
[1721377309301,2.94683,3393.5,3392.7,2.94748]
[1721377309526,2.94698,3393.3,3392.8,1.139501]
[1721377309804,2.94681,3393.5,3392.8,4.086861]
[1721377310164,2.94664,3393.7,3393.1,2.94714]
[1721377310405,2.94673,3393.6,3393.2,0.55]
[1721377310705,2.94673,3393.6,3393.1,0.55]
[1721377311662,2.94684,3393.5,3393.1,0.55]
[1721377312105,2.94684,3393.5,3393.1,1.2019461]
[1721377312398,2.94664,3393.7,3393.1,1.2019461]
[1721377312765,2.94674,3393.6,3393.1,1.2019461]
[1721377313706,2.94648,3393.9,3393.1,1.2019461]
[1721377313867,2.94667,3393.7,3393.1,1.26088169]
[1721377314262,2.94667,3393.7,3393.2,0.66407817]
[1721377314512,2.94667,3393.7,3393.3,0.55]
[1721377318007,2.94653,3393.9,3393.3,0.55]
[1721377318328,2.94631,3394.1,3393.3,0.60893562]
[1721377318471,2.94631,3394.1,3393.5,2.94679]
[1721377318671,2.94631,3394.1,3393.6,0.55]
[1721377319807,2.9462,3394.2,3393.6,3.846339]
[1721377320105,2.94634,3394.1,3393.6,0.55]
[1721377320265,2.94634,3394.1,3393.5,0.55]
[1721377320465,2.94646,3393.9,3393.5,0.55]
[1721377320701,2.94646,3393.9,3393.4,0.55]
[1721377320899,2.94646,3393.9,3393.5,0.41610382]
[1721377321082,2.94635,3394.1,3393.6,0.55]
[1721377321296,2.555,3394.5,3393.6,0.55]
[1721377321297,2.9464,3394.0,3393.6,0.55]
[1721377321485,2.555,3394.5,3393.2,0.66407817]
[1721377321486,2.94617,3394.3,3393.2,0.66407817]
[1721377321686,2.94617,3394.3,3393.1,3.0]
[1721377321687,2.94669,3393.7,3393.1,3.0]
[1721377321887,2.94669,3393.7,3393.2,0.55]
[1721377322097,2.94673,3393.6,3393.2,3.55]
[1721377322278,2.94681,3393.5,3393.2,0.55]
[1721377322478,2.555,3393.7,3392.8,3.536911]
[1721377322479,2.9469,3393.4,3392.9,3.55]
[1721377322683,2.9469,3393.4,3392.9,4.2586911]
[1721377323817,2.94699,3393.3,3392.9,4.2586911]
[1721377324122,2.94717,3393.1,3392.9,0.55]
[1721377324309,2.94717,3393.1,3392.5,2.2887]
[1721377324704,2.4179,3394.1,3392.6,2.94751]
[1721377324705,2.9469,3393.4,3392.6,2.94751]
[1721377325141,2.9469,3393.4,3392.8,2.94734]
[1721377326140,2.9469,3393.4,3392.9,0.55]
[1721377326344,5.50166,3393.7,3393.0,0.349734]
[1721377326345,2.94666,3393.7,3393.0,0.349734]
[1721377326533,2.94686,3393.5,3393.1,0.55]
[1721377327106,2.94648,3393.9,3393.1,3.49714]
[1721377327339,2.94648,3393.9,3393.2,5.1972]
[1721377327514,2.94622,3394.2,3393.5,2.94675]
[1721377327842,2.94622,3394.2,3393.6,0.644368]
[1721377328051,2.94622,3394.2,3393.7,0.55]
[1721377328231,2.94638,3394.0,3393.7,0.55]
[1721377329004,2.94638,3394.0,3393.2,5.19725]
[1721377329005,2.9468,3393.6,3393.2,2.2502]
[1721377329520,2.9468,3393.6,3393.3,0.55]
[1721377329719,2.9468,3393.6,3393.3,3.55]
[1721377330304,2.9468,3393.6,3393.3,4.4597174]
[1721377330542,2.94681,3393.5,3393.3,3.55]
[1721377331055,2.94681,3393.5,3393.3,0.55]
[1721377331220,2.94681,3393.5,3393.1,0.55]
[1721377331908,2.94664,3393.7,3393.1,0.55]
[1721377332308,2.94672,3393.6,3393.1,3.55]
[1721377332650,2.94672,3393.6,3393.2,1.2794194]
[1721377332818,2.94672,3393.6,3393.3,0.55]
[1721377333746,2.94689,3393.4,3393.3,0.55]
[1721377333952,2.94684,3393.5,3392.8,3.0]
[1721377333953,2.94705,3393.3,3392.8,3.0]
[1721377334107,2.94705,3393.3,3392.2,3.109]
[1721377334108,2.94837,3391.8,3391.6,2.4892]
[1721377334308,2.94837,3391.8,3390.1,1.22668905]
[1721377334309,2.94847,3391.6,3390.4,2.94946]
[1721377334651,2.555,3391.7,3389.6,0.61334452]
[1721377334652,4.427,3391.7,3389.6,0.61334452]
[1721377334821,4.77361022,3391.6,3389.2,0.05898387]
[1721377335025,1.82515022,3390.9,3388.7,0.05898875]
[1721377335247,2.555,3389.3,3388.6,0.3082379]
[1721377335425,2.95012,3389.7,3388.2,0.05900531]
[1721377335613,2.555,3389.1,3387.9,0.05900462]
[1721377335811,2.555,3389.1,3388.0,3.109]
[1721377336057,5.50563,3389.1,3387.3,3.01120264]
[1721377336243,11.01126,3389.1,3386.9,2.95249]
[1721377336422,11.01126,3389.1,3387.0,0.05902537]
[1721377336423,8.85189,3389.1,3387.0,0.05902537]
[1721377336622,13.96189,3389.1,3387.0,0.05902537]
[1721377336846,13.96189,3389.1,3387.1,3.109]
[1721377337048,5.90288,3388.2,3386.0,2.9533]
[1721377337260,2.95063,3389.1,3386.0,2.9533]
[1721377337261,2.555,3386.6,3386.2,2.33]
[1721377337613,6.37329,3387.2,3386.2,2.33]
[1721377337813,3.421,3387.6,3386.3,3.16804526]
[1721377338134,2.95186,3387.7,3387.0,3.109]
[1721377338454,2.95179,3387.8,3386.9,2.33]
[1721377338615,2.9516,3388.0,3387.0,0.233]
[1721377338814,2.95129,3388.4,3387.1,0.05903087]
[1721377339074,2.95134,3388.3,3387.3,3.109]
[1721377339268,2.95134,3388.3,3387.0,3.18543]
[1721377339269,2.95202,3387.5,3387.4,0.31680309]
[1721377339420,3.421,3387.7,3386.3,2.431]
[1721377339623,2.95256,3386.9,3386.3,2.431]
[1721377340028,2.95266,3386.8,3386.3,2.431]
[1721377341151,2.95266,3386.8,3386.1,0.29533]
[1721377341329,2.95266,3386.8,3385.8,6.109]
[1721377342473,2.33641544,3386.7,3385.8,6.109]
[1721377342685,2.95282,3386.6,3385.8,6.109]
[1721377343030,2.9529,3386.5,3385.8,6.109]
[1721377343327,2.95298,3386.5,3385.9,0.55]
[1721377343562,3.421,3386.9,3386.0,0.61054]
[1721377343872,2.95299,3386.4,3386.1,0.55]
[1721377344226,6.37399,3386.4,3386.1,0.55]
[1721377344427,6.37399,3386.4,3385.7,2.4464]
[1721377344428,2.95336,3386.0,3385.7,2.4464]
[1721377344641,3.421,3386.4,3385.7,2.4464]
[1721377344971,2.95299,3386.4,3385.8,0.24464]
[1721377345128,2.95279,3386.7,3385.9,0.05905769]
[1721377345329,6.37329,3387.2,3385.9,3.16805769]
[1721377345573,2.95236,3387.2,3386.2,3.109]
[1721377345732,2.95239,3387.1,3386.2,3.109]
[1721377345933,2.95239,3387.1,3386.3,0.61213047]
[1721377346135,2.95239,3387.1,3386.4,0.55]
[1721377346136,2.95274,3386.7,3386.4,0.55]
[1721377346463,6.37374,3386.7,3386.4,0.55]
[1721377346660,6.37374,3386.7,3386.4,3.0]
[1721377346661,5.9058,3386.5,3386.4,3.0]
[1721377346830,2.95334,3386.0,3385.8,0.24464]
[1721377347031,2.95317,3386.2,3385.9,0.269104]
[1721377347639,2.95333,3386.0,3385.9,0.269104]
[1721377347840,2.95333,3386.0,3385.1,5.3637]
[1721377348070,2.95333,3386.0,3385.2,3.55]
[1721377348342,2.95333,3386.0,3385.2,6.659]
[1721377350963,2.95319,3386.2,3385.2,6.659]
[1721377351165,2.95327,3386.1,3385.2,6.659]
[1721377351366,2.95327,3386.1,3385.3,1.186781]
[1721377351552,2.95319,3386.2,3385.4,0.55]
[1721377351997,2.95325,3386.1,3385.4,0.55]
[1721377352156,5.40225,3387.4,3384.6,3.109]
[1721377352157,2.95387,3385.4,3384.6,3.109]
[1721377352487,2.95387,3385.4,3384.5,8.18564]
[1721377352488,2.95396,3385.3,3384.5,2.281]
[1721377352640,2.95396,3385.3,3384.6,0.52358]
[1721377352845,3.421,3385.4,3384.6,0.52358]
[1721377353142,2.95421,3385.0,3384.1,6.06396]
[1721377353775,2.95421,3385.0,3383.9,9.681]
[1721377353776,2.95448,3384.7,3383.9,2.281]
[1721377353979,2.95421,3385.0,3383.9,2.281]
[1721377353980,2.95456,3384.6,3383.9,2.281]
[1721377354149,2.95466,3384.5,3383.9,2.281]
[1721377354353,2.95466,3384.5,3383.5,2.95549]
[1721377354354,2.95466,3384.5,3383.4,12.6555]
[1721377354581,2.95466,3384.5,3383.5,1.28024047]
[1721377354996,2.95466,3384.5,3383.6,2.95536]
[1721377355195,2.95466,3384.5,3383.5,4.23574047]
[1721377355349,2.95466,3384.5,3383.6,2.95535]
[1721377355545,3.421,3384.9,3384.2,2.95487]
[1721377355851,2.95406,3385.2,3384.3,3.250267]
[1721377356460,2.4604,3385.7,3384.7,2.95447]
[1721377356461,2.95384,3385.5,3384.7,2.95447]
[1721377356663,6.37461,3385.7,3384.8,3.50436]
[1721377356894,3.421,3386.5,3385.5,2.95376]
[1721377357049,2.95299,3386.4,3385.6,0.60906251]
[1721377357249,2.95245,3387.1,3385.7,0.35628225]
[1721377357504,2.95235,3387.2,3386.2,2.95314]
[1721377357807,7.45,3387.6,3386.3,0.05905196]
[1721377357808,2.95222,3387.3,3386.3,0.05905196]
[1721377358100,3.421,3387.8,3386.4,0.55]
[1721377358101,2.95209,3387.5,3386.4,0.55]
[1721377358607,2.3694,3388.0,3386.2,3.05905161]
[1721377358608,3.421,3387.4,3386.3,0.55]
[1721377358751,2.95306,3386.4,3385.8,3.0]
[1721377358951,3.421,3387.0,3385.7,0.35628225]
[1721377358952,2.95334,3386.0,3385.7,0.35628225]
[1721377359189,2.95342,3385.9,3385.8,0.55]
[1721377359604,3.421,3386.2,3384.4,2.4615]
[1721377359751,2.95388,3385.4,3384.4,2.52057315]
[1721377359950,2.95388,3385.4,3384.4,2.4615]
[1721377360305,2.95388,3385.4,3384.4,5.41623]
[1721377360608,2.95343,3385.9,3384.5,3.53171922]
[1721377360750,2.95343,3385.9,3384.5,0.63615195]
[1721377360953,2.95353,3385.8,3384.7,2.95446]
[1721377361290,3.597,3386.8,3384.8,3.55]
[1721377361291,2.95363,3385.7,3384.8,3.55]
[1721377361488,2.95363,3385.7,3384.8,6.50437]
[1721377361696,2.95343,3385.9,3384.8,6.50437]
[1721377361697,2.95368,3385.6,3384.8,6.50437]
[1721377361861,2.95407,3385.2,3384.4,2.4615]
[1721377362064,2.95464,3384.5,3383.7,2.3509]
[1721377362900,2.95476,3384.4,3383.7,2.3509]
[1721377363292,2.95476,3384.4,3383.5,2.9555]
[1721377363488,2.95516,3384.0,3383.2,0.1469047]
[1721377364124,2.95499,3384.1,3383.2,3.1026447]
[1721377364291,2.95499,3384.1,3383.3,1.15895747]
[1721377364496,2.95488,3384.3,3383.3,4.11464747]
[1721377364694,2.95382,3385.5,3383.3,4.11464747]
[1721377364695,2.95442,3384.8,3383.4,3.16810025]
[1721377364907,2.95442,3384.8,3383.9,2.95516]
[1721377365104,2.95442,3384.8,3384.0,3.0590901]
[1721377365401,2.95422,3385.0,3384.1,3.55641501]
[1721377365618,2.9543,3384.9,3384.2,3.0]
[1721377365995,5.34214,3385.6,3384.3,0.55]
[1721377365996,2.95454,3384.7,3384.3,0.55]
[1721377366225,2.95365,3385.7,3384.1,3.60142501]
[1721377366226,2.9542,3385.1,3384.2,0.55]
[1721377366430,2.95369,3385.6,3384.2,3.55]
[1721377366595,2.95405,3385.2,3384.2,3.55]
[1721377366939,2.2606,3386.0,3384.2,0.55]
[1721377366940,2.95413,3385.1,3384.2,0.55]
[1721377367299,2.95421,3385.0,3384.2,3.50484]
[1721377367501,2.95411,3385.2,3384.3,3.0]
[1721377367707,2.95412,3385.1,3384.4,0.55]
[1721377367902,2.95412,3385.1,3384.5,0.705484]
[1721377368230,2.95395,3385.3,3384.6,0.55]
[1721377368535,2.95404,3385.2,3384.6,0.55]
[1721377368918,2.95387,3385.4,3384.6,0.55]
[1721377369125,2.95397,3385.3,3384.6,0.55]
[1721377369293,2.95397,3385.3,3384.7,0.7210184]
[1721377371756,2.95317,3386.2,3385.3,2.95388]
[1721377371932,2.95317,3386.2,3385.4,4.50870489]
[1721377372122,2.95298,3386.5,3385.4,7.50870489]
[1721377372321,2.95313,3386.3,3385.4,7.50870489]
[1721377372633,2.95268,3386.8,3385.6,5.28985]
[1721377372802,2.95285,3386.6,3385.7,3.55]
[1721377373005,2.95285,3386.6,3385.8,0.883985]
[1721377373209,2.95272,3386.7,3385.9,0.55]
[1721377373409,2.95255,3386.9,3385.9,3.55]
[1721377373633,2.95255,3386.9,3385.9,3.6090513]
[1721377374053,2.95255,3386.9,3386.0,2.95333]
[1721377374220,2.95255,3386.9,3386.1,4.58998763]
[1721377374423,2.3343,3387.7,3386.1,4.58998763]
[1721377374424,2.95264,3386.8,3386.1,4.58998763]
[1721377374649,2.95287,3386.6,3386.1,4.58998763]
[1721377374836,2.95316,3386.2,3386.1,0.55]
[1721377375155,2.95333,3386.0,3385.9,0.55]
[1721377375323,2.95325,3386.1,3385.8,0.55]
[1721377375527,2.95334,3386.0,3385.8,0.55]
[1721377376343,2.95227,3387.3,3385.8,0.55]
[1721377376344,2.95317,3386.2,3385.8,0.55]
[1721377376515,2.95338,3386.0,3385.8,0.55]
[1721377376965,2.95338,3386.0,3385.2,3.0]
[1721377376966,2.95257,3386.9,3384.9,2.3068]
[1721377377117,2.95345,3385.9,3384.9,3.58838]
[1721377377314,2.95404,3385.2,3384.4,2.95473]
[1721377377560,2.95345,3385.9,3384.4,2.95473]
[1721377377846,2.95405,3385.2,3384.4,2.95473]
[1721377378059,2.95407,3385.2,3384.4,2.95473]
[1721377378237,2.95317,3386.2,3383.5,2.3568]
[1721377378238,2.95473,3384.5,3383.5,2.3568]
[1721377378561,2.95453,3384.7,3383.7,2.95528]
[1721377378752,2.95431,3384.9,3383.6,1.02198847]
[1721377378936,2.95431,3384.9,3383.6,4.13098847]
[1721377379110,2.95431,3384.9,3383.8,2.95523]
[1721377379313,2.95439,3384.8,3384.0,2.95507]
[1721377379545,2.95439,3384.8,3384.1,3.59103]
[1721377379909,2.95439,3384.8,3384.1,6.70003]
[1721377380118,2.9531,3386.3,3384.1,6.70003]
[1721377380119,2.95408,3385.2,3384.3,2.9548]
[1721377380434,2.95422,3385.0,3384.4,3.0]
[1721377380636,2.95404,3385.2,3384.5,0.59549]
[1721377380822,2.95388,3385.4,3384.6,2.4597]
[1721377381032,2.95398,3385.3,3384.7,0.55]
[1721377381229,2.95367,3385.7,3384.7,6.50438]
[1721377381447,2.95402,3385.3,3384.8,1.86232]
[1721377381645,2.95379,3385.5,3384.9,0.55]
[1721377381955,2.95403,3385.2,3384.9,0.55]
[1721377382252,3.597,3386.2,3384.5,0.59549]
[1721377382461,2.95461,3384.6,3384.1,10.32803]
[1721377382659,2.95443,3384.8,3384.2,1.0277229]
[1721377382843,2.95413,3385.1,3384.1,2.92803]
[1721377383010,2.95413,3385.1,3384.2,3.2401936]
[1721377383209,2.95413,3385.1,3384.3,2.56925336]
[1721377383446,2.95413,3385.1,3384.2,0.6709462]
[1721377383633,2.95413,3385.1,3384.4,0.61334452]
[1721377383846,2.95455,3384.6,3384.5,0.55]
[1721377384024,2.95444,3384.8,3384.5,1.32709462]
[1721377384230,2.95444,3384.8,3384.5,0.55]
[1721377384427,2.95444,3384.8,3384.3,0.55]
[1721377384844,2.95444,3384.8,3384.2,3.6709462]
[1721377384845,2.95482,3384.3,3384.2,3.6709462]
[1721377385051,2.95482,3384.3,3384.2,0.6709462]
[1721377385252,2.95482,3384.3,3383.8,3.61334452]
[1721377385253,2.95482,3384.3,3383.8,0.61334452]
[1721377385569,2.95482,3384.3,3383.9,3.18284625]
[1721377385768,2.95444,3384.8,3384.0,5.56950173]
[1721377386113,2.95405,3385.2,3384.1,5.52448173]
[1721377386223,5.36954,3385.9,3384.2,8.52440173]
[1721377386224,2.95387,3385.4,3384.2,8.52440173]
[1721377386568,2.95395,3385.3,3384.4,2.95467]
[1721377386729,2.2917,3386.7,3384.6,2.4746]
[1721377386928,2.2917,3386.7,3384.7,1.57762094]
[1721377387154,2.95393,3385.4,3384.8,1.02762094]
[1721377387353,2.95373,3385.6,3384.9,3.11888367]
[1721377387528,2.9542,3385.0,3384.9,0.7676845]
[1721377387731,2.9542,3385.0,3384.7,0.55]
[1721377388074,2.95403,3385.2,3384.7,0.55]
[1721377388384,2.279,3385.7,3384.4,3.0]
[1721377388686,2.95485,3384.3,3384.2,3.0]
[1721377388845,2.95485,3384.3,3384.1,3.0]
[1721377389024,2.95485,3384.3,3384.1,0.3]
[1721377389223,2.95464,3384.5,3383.7,3.61334452]
[1721377389224,2.95464,3384.5,3383.8,0.61334452]
[1721377389471,2.95471,3384.5,3383.9,3.18292625]
[1721377389631,2.95471,3384.5,3384.0,6.18292625]
[1721377389834,2.95471,3384.5,3384.1,2.56958173]
[1721377390028,2.95471,3384.5,3384.2,5.56941418]
[1721377390230,2.95449,3384.7,3384.3,0.61827587]
[1721377390731,2.95449,3384.7,3384.1,0.61334452]
[1721377390937,2.95449,3384.7,3384.2,2.56932575]
[1721377391127,2.95449,3384.7,3384.3,0.55]
[1721377391327,2.95449,3384.7,3384.2,0.55]
[1721377393044,2.9543,3384.9,3384.2,0.55]
[1721377393268,2.9543,3384.9,3384.3,0.650507]
[1721377393567,2.9543,3384.9,3384.4,0.55]
[1721377393750,2.95401,3385.3,3384.4,0.55]
[1721377393970,2.95401,3385.3,3384.5,2.95464]
[1721377394148,2.95401,3385.3,3384.6,7.5155347]
[1721377394834,2.9537,3385.6,3384.6,7.5155347]
[1721377395066,2.9537,3385.6,3384.7,0.05908049]
[1721377395270,2.9537,3385.6,3384.8,0.55]
[1721377395477,2.95394,3385.3,3384.8,0.55]
[1721377395632,2.95403,3385.2,3384.7,0.55]
[1721377395973,2.9543,3384.9,3384.7,3.0]
[1721377396134,2.9543,3384.9,3384.3,3.650507]
[1721377396329,2.9543,3384.9,3384.4,1.2105487]
[1721377396963,2.95413,3385.1,3384.4,1.2105487]